Workbook

Sheet начальн.кл
A1: Согласовано | E1: Утверждаю
A2: И.о.начальника МКУ отдел образования Директор ООО " КДП Радуга"
A3: МР Учалинский район РБ Л.Л. Галиахметова
A4: Р.А. Зарипова
A5: Меню для образовательных учреждений города и района
A6: Учалинский район Республики Башкортостан
A7: на 60 рублей Ноябрь 2024 | K7: (1 - смена)
A8: Категория: родительский взнос, район ( 5-11 кл) 60 рублей
A9: Первая неделя | L9: 2024-11-05
A10: Прием пищи | B10: Раздел | C10: № рец | D10: Блюдо | E10: Выход | F10: Цена | G10: расход | H10: Цена | I10: ЭЦ | J10: Белки | K10: Жиры | L10: Углеводы
A11: Завтрак | C11: 365 | D11: Масло сливочное | E11: 10 | F11: 8 | G11: 66 | H11: 8 | I11: 7 | J11: 0
C12: 134 | D12: Каша "Дружба" молочная с маслом | E12: 208 | H12: 25 | I12: 274 | J12: 12 | K12: 15 | L12: 32.4
C13: 184 | D13: Чай с сахаром | E13: 200 | H13: 10 | I13: 52 | J13: 0 | K13: 0 | L13: 14
C14: 1.1 | D14: Хлеб пшеничный | E14: 50 | F14: 73.7 | G14: 50 | H14: 5 | I14: 130 | J14: 4 | K14: 0.05 | L14: 27.5
D15: Итого: | H15: =H11+H12+H13+H14 -> 48 | I15: =SUM(I12:I14) -> 456 | J15: =SUM(J12:J14) -> 16 | K15: =SUM(K12:K14) -> 15.05 | L15: =SUM(L12:L14) -> 73.9 | N15: 48
L16: 2024-11-06
A17: Прием пищи | B17: Раздел | C17: № рец | D17: Блюдо | E17: Выход | F17: Цена | G17: расход | H17: Цена | I17: ЭЦ | J17: Белки | K17: Жиры | L17: Углеводы
A18: Завтрак | C18: 268 | D18: Котлеты рубленные из птицы с соусом | E18: 90 | F18: 45 | G18: 208 | H18: 40 | I18: 385 | J18: 19 | K18: 24.2 | L18: 21.6
C19: 146 | D19: Бобовые отварные | E19: 153 | F19: 15 | G19: 223 | H19: 20 | I19: 297 | J19: 19 | K19: 5 | L19: 32.4
C20: 196 | D20: Чай с лимоном и сахаром | E20: 207 | H20: 10 | I20: 54 | J20: 0 | K20: 0 | L20: 14
C21: 1.1 | D21: Хлеб пшеничный | E21: 50 | F21: 73.7 | G21: 50 | H21: 5 | I21: 130 | J21: 4 | K21: 0.05 | L21: 27.5
D22: Итого: | H22: =H18+H19+H20+H21 -> 75 | I22: =I18+I19+I20+I21 -> 866 | J22: =SUM(J18:J21) -> 42 | K22: =SUM(K18:K21) -> 29.25 | L22: =SUM(L18:L21) -> 95.5 | N22: 75
L24: 2024-11-07
A25: Прием пищи | B25: Раздел | C25: № рец | D25: Блюдо | E25: Выход | F25: Цена | G25: расход | H25: Цена | I25: ЭЦ | J25: Белки | K25: Жиры | L25: Углеводы
A26: Завтрак | C26: 239 | D26: Запеканка творожно- рисовая с молоком сгущ. | E26: 200/20 | H26: 40 | I26: 300 | J26: 18.9 | K26: 13.3 | L26: 25.3
C27: 287 | D27: Кофейный напиток на молоке | E27: 200 | F27: 825 | G27: 1 | H27: 10 | I27: 101 | J27: 3.4 | K27: 15.1 | L27: 3.3
C28: 1.1 | D28: Хлеб пшеничный | E28: 50 | F28: 73.7 | G28: 50 | H28: 5 | I28: 130 | J28: 4 | K28: 0.05 | L28: 28
C29: 368 | D29: Фрукт /яблоко | E29: 100 | H29: 20 | I29: 88 | J29: 3 | K29: 1 | L29: 20
D30: Итого: | H30: =SUM(H26:H29) -> 75 | I30: =SUM(I26:I29) -> 619 | J30: =SUM(J26:J29) -> 29.3 | K30: =SUM(K26:K29) -> 29.45 | L30: =SUM(L26:L29) -> 76.6 | N30: 75
L32: 2024-11-08
A33: Прием пищи | B33: Раздел | C33: № рец | D33: Блюдо | E33: Выход | F33: Цена | G33: расход | H33: Цена | I33: ЭЦ | J33: Белки | K33: Жиры | L33: Углеводы
A34: Завтрак | C34: 80 | D34: Рыба, тушеная в томате с овощами | E34: 105 | F34: 40 | G34: 115 | H34: 45 | I34: 115 | J34: 14 | K34: 5
C35: 138 | D35: Пюре картофельное с маслом слив | E35: 210 | F35: 99 | G35: 44 | H35: 20 | I35: 263 | J35: 4.1 | K35: 14 | L35: 30
C36: 65 | D36: Напиток из плодов шиповника | E36: 200 | H36: 10 | I36: 119 | J36: 0.7 | K36: 0.03 | L36: 29
C37: 1.1 | D37: Хлеб | E37: 50 | F37: 73.7 | G37: 50 | H37: 5 | I37: 130 | J37: 4 | K37: 0.05 | L37: 27.5
D38: Итого: | H38: =SUM(H34:H37) -> 80 | I38: =SUM(I34:I37) -> 627 | J38: =SUM(J34:J37) -> 22.8 | K38: =SUM(K34:K37) -> 19.08 | L38: =SUM(L34:L37) -> 86.5 | N38: 80
A39: Вторая неделя | L39: 2024-11-11
A40: Прием пищи | B40: Раздел | C40: № рец | D40: Блюдо | E40: Выход | F40: Цена | G40: расход | H40: Цена | I40: ЭЦ | J40: Белки | K40: Жиры | L40: Углеводы
A41: Завтрак | C41: 42 | D41: Каша овсяная "Геркулес" вязкая с маслом слив | E41: 210 | F41: 99 | G41: 44 | H41: 25 | I41: 272 | J41: 9 | K41: 12 | L41: 38
C42: 184 | D42: Чай с сахаром | E42: 200 | H42: 5 | I42: 52 | J42: 0 | K42: 0 | L42: 14
C43: 1,1 | D43: Хлеб пшеничный | E43: 50 | F43: 73.7 | G43: 50 | H43: 5 | I43: 130 | J43: 4 | K43: 0.05 | L43: 27.5
C44: 20 | D44: Кондит изд. | E44: 50 | F44: 10 | G44: 208 | H44: 15 | I44: 195 | J44: 5 | K44: 5 | L44: 45
D45: Итого | H45: =SUM(H41:H44) -> 50 | I45: =SUM(I41:I44) -> 649 | J45: =SUM(J41:J44) -> 18 | K45: =SUM(K41:K44) -> 17.05 | L45: =SUM(L41:L44) -> 124.5 | N45: 50
L46: 2024-11-12
A47: Прием пищи | B47: Раздел | C47: № рец | D47: Блюдо | E47: Выход | F47: Цена | G47: расход | H47: Цена | I47: ЭЦ | J47: Белки | K47: Жиры | L47: Углеводы
A48: Завтрак | C48: 91 | D48: Гуляш из отварной говядины | E48: 90 | F48: 40 | G48: 381 | H48: 45 | I48: 381 | J48: 26 | K48: 28 | L48: 7
C49: 212 | D49: Макаронные изделия отварные | E49: 205 | F49: 20 | G49: 246 | H49: 25 | I49: 270 | J49: 7.7 | K49: 4.5 | L49: 49
C50: 289 | D50: Какао с молоком | E50: 200 | F50: 825 | G50: 1 | H50: 10 | I50: 111 | J50: 4 | K50: 4 | L50: 16
C51: 1.1 | D51: Хлеб пшеничный | E51: 50 | F51: 73.7 | G51: 50 | H51: 5 | I51: 130 | J51: 4 | K51: 0.05 | L51: 27.5
D52: Итого: | H52: =SUM(H48:H51) -> 85 | I52: =SUM(I48:I51) -> 892 | J52: =SUM(J48:J51) -> 41.7 | K52: =SUM(K48:K51) -> 36.55 | L52: =SUM(L48:L51) -> 99.5 | N52: 85
L53: 2024-11-13
A54: Прием пищи | B54: Раздел | C54: № рец | D54: Блюдо | E54: Выход | F54: Цена | G54: расход | H54: Цена | I54: ЭЦ | J54: Белки | K54: Жиры | L54: Углеводы
A55: Завтрак | C55: 100 | D55: Плов из мяса птицы | E55: 200 | H55: 40 | I55: 433 | J55: 18.6 | K55: 22.1 | L55: 39.3
C56: 276 | D56: Компот из смеси сухофруктов | E56: 200 | H56: 10 | I56: 110 | J56: 1 | K56: 0.05 | L56: 27.5
C57: 1.1 | D57: Хлеб пшеничный | E57: 50 | F57: 73.7 | G57: 50 | H57: 4 | I57: 130 | J57: 4 | K57: 0.05 | L57: 27.5
D58: Итого: | H58: =SUM(H55:H57) -> 54 | I58: =SUM(I55:I57) -> 673 | J58: =SUM(J55:J57) -> 23.6 | K58: =SUM(K55:K57) -> 22.2 | L58: =SUM(L55:L57) -> 94.3 | N58: 54
L59: 2024-11-14
A60: Прием пищи | B60: Раздел | C60: № рец | D60: Блюдо | E60: Выход | F60: Цена | G60: расход | H60: Цена | I60: ЭЦ | J60: Белки | K60: Жиры | L60: Углеводы
A61: Завтрак | C61: 134 | D61: Каша "Дружба" молочная с маслом | E61: 208 | H61: 25 | I61: 274 | J61: 12 | K61: 15 | L61: 32.4
C62: 184 | D62: Чай с сахаром | E62: 200 | H62: 10 | I62: 52 | J62: 0 | K62: 0 | L62: 14
C63: 1.1 | D63: Хлеб пшеничный | E63: 50 | F63: 73.7 | G63: 50 | H63: 5 | I63: 130 | J63: 4 | K63: 0.05 | L63: 27.5
D64: Итого: | H64: =SUM(H61:H63) -> 40 | I64: =SUM(I61:I63) -> 456 | J64: =SUM(J61:J63) -> 16 | K64: =SUM(K61:K63) -> 15.05 | L64: =SUM(L61:L63) -> 73.9 | N64: 40
L65: 2024-11-15
A66: Прием пищи | B66: Раздел | C66: № рец | D66: Блюдо | E66: Выход | F66: Цена | G66: расход | H66: Цена | I66: ЭЦ | J66: Белки | K66: Жиры | L66: Углеводы
A67: Завтрак | C67: 98 | D67: Котлета из говядины | E67: 60 | F67: 40 | G67: 178 | H67: 45 | I67: 178 | J67: 10 | K67: 11 | L67: 10
C68: 138 | D68: Пюре картофельное с маслом слив | E68: 210 | F68: 99 | G68: 44 | H68: 20 | I68: 263 | J68: 4.1 | K68: 14 | L68: 30
C69: 15.3 | D69: Витаминиз.кисель "Витоша" | E69: 200 | F69: 16 | G69: 92 | H69: 15 | I69: 95 | J69: 0 | K69: 0 | L69: 24
C70: 1.1 | D70: Хлеб пшеничный | E70: 50 | F70: 73.7 | G70: 50 | H70: 5 | I70: 130 | J70: 4 | K70: 0.05 | L70: 27.5
D71: Итого: | H71: 75 | I71: =SUM(I67:I70) -> 666 | J71: =SUM(J67:J70) -> 18.1 | K71: =SUM(K67:K70) -> 25.05 | L71: =SUM(L67:L70) -> 91.5 | N71: 75
A72: Третья неделя | L72: 2024-11-18
A73: Прием пищи | B73: Раздел | C73: № рец | D73: Блюдо | E73: Выход | F73: Цена | G73: расход | H73: Цена | I73: ЭЦ | J73: Белки | K73: Жиры | L73: Углеводы
A74: Завтрак | C74: 182 | D74: Каша пшеная молоч. жидкая | E74: 208 | H74: 25 | I74: 264 | J74: 7 | K74: 10.3 | L74: 34.9
C75: 287 | D75: Кофейный напиток на молоке | E75: 200 | F75: 10 | G75: 101 | H75: 10 | I75: 101 | J75: 3.4 | K75: 15.1 | L75: 3.3
C76: 1.1 | D76: Хлеб пшеничный | E76: 50 | F76: 73.7 | G76: 50 | H76: 5 | I76: 130 | J76: 4 | K76: 0.05 | L76: 27.5
C77: 188 | D77: Булочка молочная | E77: 50 | F77: 10 | G77: 208 | H77: 15 | I77: 195 | J77: 4.7 | K77: 5 | L77: 36
D78: Итого: | H78: =SUM(H74:H77) -> 55 | I78: =SUM(I74:I77) -> 690 | J78: =SUM(J74:J77) -> 19.1 | K78: =SUM(K74:K77) -> 30.45 | L78: =SUM(L74:L77) -> 101.7 | N78: 55
L79: 2024-11-19
A80: Прием пищи | B80: Раздел | C80: № рец | D80: Блюдо | E80: Выход | F80: Цена | G80: расход | H80: Цена | I80: ЭЦ | J80: Белки | K80: Жиры | L80: Углеводы
A81: Завтрак | C81: 97 | D81: Жаркое по-домашнему | E81: 200 | H81: 40 | I81: 407 | J81: 23.5 | K81: 24.6 | L81: 23
C82: 196 | D82: Кисель плодово/ягодный | E82: 200 | F82: 10 | G82: 66 | H82: 10 | I82: 66 | J82: 0 | K82: 0 | L82: 10
C83: 1.1 | D83: Хлеб пшеничный | E83: 50 | F83: 73.7 | G83: 50 | H83: 5 | I83: 130 | J83: 4 | K83: 0.05 | L83: 27.5
D84: Итого: | H84: =SUM(H81:H83) -> 55 | I84: =SUM(I81:I83) -> 603 | J84: =SUM(J81:J83) -> 27.5 | K84: =SUM(K81:K83) -> 24.65 | L84: =SUM(L81:L83) -> 60.5 | N84: 55
L85: 2024-11-20
A86: Прием пищи | B86: Раздел | C86: № рец | D86: Блюдо | E86: Выход | F86: Цена | G86: расход | H86: Цена | I86: ЭЦ | J86: Белки | K86: Жиры | L86: Углеводы
A87: Завтрак | C87: 239 | D87: Запеканка творожно- рисовая с молоком сгущ. | E87: 200/20 | H87: 40 | I87: 300 | J87: 18.9 | K87: 13.3 | L87: 25.3
C88: 287 | D88: Кофейный напиток на молоке | E88: 200 | F88: 825 | G88: 1 | H88: 10 | I88: 101 | J88: 3.4 | K88: 15.1 | L88: 3.3
C89: 1.1 | D89: Хлеб пшеничный | E89: 50 | F89: 73.7 | G89: 50 | H89: 5 | I89: 130 | J89: 4 | K89: 0.05 | L89: 27.5
D90: Итого: | H90: =SUM(H87:H89) -> 55 | I90: =SUM(I87:I89) -> 531 | J90: =SUM(J87:J89) -> 26.3 | K90: =SUM(K87:K89) -> 28.45 | L90: =SUM(L87:L89) -> 56.1 | N90: 55
L92: 2024-11-21
A93: Прием пищи | B93: Раздел | C93: № рец | D93: Блюдо | E93: Выход | F93: Цена | G93: расход | H93: Цена | I93: ЭЦ | J93: Белки | K93: Жиры | L93: Углеводы
A94: Завтрак | C94: 91 | D94: Гуляш из отварной говядины | E94: 90 | F94: 40 | G94: 381 | H94: 40 | I94: 381 | J94: 26 | K94: 28 | L94: 7
C95: 123 | D95: Каша гречневая рассыпчатая с маслом | E95: 210 | F95: 20 | G95: 296 | H95: 20 | I95: 296 | J95: 11.2 | K95: 7 | L95: 46
C96: 276 | D96: Компот из смеси сухофруктов | E96: 200 | H96: 10 | I96: 110 | J96: 1 | K96: 0.05 | L96: 27.5
C97: 1.1 | D97: Хлеб | E97: 50 | F97: 73.7 | G97: 50 | H97: 5 | I97: 130 | J97: 4 | K97: 0.05 | L97: 27.5
D98: Итого: | H98: =SUM(H94:H97) -> 75 | I98: =SUM(I94:I97) -> 917 | J98: =SUM(J94:J97) -> 42.2 | K98: =SUM(K94:K97) -> 35.1 | L98: =SUM(L94:L97) -> 108 | N98: 75
L99: 2024-11-22
A100: Прием пищи | B100: Раздел | C100: № рец | D100: Блюдо | E100: Выход | F100: Цена | G100: расход | H100: Цена | I100: ЭЦ | J100: Белки | K100: Жиры | L100: Углеводы
A101: Завтрак | C101: 365 | D101: Масло сливочное | E101: 10 | H101: 10 | I101: 66 | J101: 0 | K101: 7 | L101: 0
C102: 42 | D102: Каша рисовая молочная вязкая | E102: 205 | F102: 25 | G102: 318 | H102: 25 | I102: 261 | J102: 6.06 | K102: 14 | L102: 42.86
C103: 289 | D103: Какао с молоком | E103: 200 | F103: 825 | G103: 1 | H103: 10 | I103: 111 | J103: 4 | K103: 4 | L103: 16
C104: 1.1 | D104: Хлеб пшеничный | E104: 50 | F104: 73.7 | G104: 50 | H104: 5 | I104: 130 | J104: 4 | K104: 0.05 | L104: 27.5
C105: 368 | D105: Фрукт /груша | E105: 100 | H105: 20 | I105: 100 | J105: 3 | K105: 1 | L105: 20
D106: Итого: | H106: 65 | I106: =SUM(I102:I105) -> 602 | J106: =SUM(J102:J105) -> 17.06 | K106: =SUM(K102:K105) -> 19.05 | L106: =SUM(L102:L105) -> 106.36 | N106: 65
A107: Четвертая неделя | L107: 2024-11-25
A108: Прием пищи | B108: Раздел | C108: № рец | D108: Блюдо | E108: Выход | F108: Цена | G108: расход | H108: Цена | I108: ЭЦ | J108: Белки | K108: Жиры | L108: Углеводы
A109: Завтрак | C109: 42 | D109: Каша овсяная "Геркулес" вязкая с маслом слив | E109: 210 | F109: 99 | G109: 44 | H109: 25 | I109: 272 | J109: 9 | K109: 16 | L109: 38
C110: 196 | D110: Чай с лимоном и сахаром | E110: 207 | H110: 7 | I110: 54 | J110: 0 | K110: 0 | L110: 14
C111: 1,1 | D111: Хлеб пшеничный | E111: 50 | F111: 73.7 | G111: 50 | H111: 5 | I111: 130 | J111: 4 | K111: 0.05 | L111: 27.5
D112: Итого: | H112: =SUM(H109:H111) -> 37 | I112: =SUM(I109:I111) -> 456 | J112: =SUM(J109:J111) -> 13 | K112: =SUM(K109:K111) -> 16.05 | L112: =SUM(L109:L111) -> 79.5 | N112: 37
L113: 2024-11-26
A114: Прием пищи | B114: Раздел | C114: № рец | D114: Блюдо | E114: Выход | F114: Цена | G114: расход | H114: Цена | I114: ЭЦ | J114: Белки | K114: Жиры | L114: Углеводы
A115: Завтрак | C115: 12.1 | D115: Филе грудки с овощами | E115: 60 | H115: 35 | I115: 191 | J115: 16 | K115: 14 | L115: 1
C116: 123 | D116: Каша гречневая рассыпчатая с маслом | E116: 210 | H116: 25 | I116: 296 | J116: 11.2 | K116: 7 | L116: 46
C117: 276 | D117: Компот из смеси сухофруктов | E117: 200 | H117: 10 | I117: 110 | J117: 1 | K117: 0.05 | L117: 27.5
C118: 1.1 | D118: Хлеб пшеничный | E118: 50 | F118: 73.7 | G118: 50 | H118: 5 | I118: 130 | J118: 4 | K118: 0.05 | L118: 27.5
D119: Итого: | H119: =SUM(H115:H118) -> 75 | I119: =SUM(I115:I118) -> 727 | J119: =SUM(J115:J118) -> 32.2 | K119: =SUM(K115:K118) -> 21.1 | L119: =SUM(L115:L118) -> 102 | N119: 75
L121: 2024-11-27
A122: Прием пищи | B122: Раздел | C122: № рец | D122: Блюдо | E122: Выход | F122: Цена | G122: расход | H122: Цена | I122: ЭЦ | J122: Белки | K122: Жиры | L122: Углеводы
A123: Завтрак | C123: 98 | D123: Котлета из говядины | E123: 60 | F123: 40 | G123: 178 | H123: 40 | I123: 178 | J123: 10 | K123: 11 | L123: 10
C124: 138 | D124: Пюре картофельное с маслом слив | E124: 210 | F124: 99 | G124: 44 | H124: 20 | I124: 263 | J124: 4.1 | K124: 14 | L124: 30
C125: 65 | D125: Напиток из плодов шиповника | E125: 200 | H125: 10 | I125: 119 | J125: 0.7 | K125: 0.03 | L125: 29
C126: 1.1 | D126: Хлеб пшеничный | E126: 50 | F126: 73.7 | G126: 50 | H126: 5 | I126: 130 | J126: 4 | K126: 0.05 | L126: 27.5
D127: Итого: | H127: =SUM(H123:H126) -> 75 | I127: =SUM(I123:I126) -> 690 | J127: =SUM(J123:J126) -> 18.8 | K127: =SUM(K123:K126) -> 25.08 | L127: =SUM(L123:L126) -> 96.5 | N127: 75
L128: 2024-11-28
A129: Прием пищи | B129: Раздел | C129: № рец | D129: Блюдо | E129: Выход | F129: Цена | G129: расход | H129: Цена | I129: ЭЦ | J129: Белки | K129: Жиры | L129: Углеводы
A130: Завтрак | C130: 80 | D130: Фишболы рыбные | E130: 60 | F130: 45 | G130: 208 | H130: 35 | I130: 134 | J130: 10 | K130: 7 | L130: 8.3
C131: 212 | D131: Макаронные изделия отварные | E131: 205 | F131: 20 | G131: 270 | H131: 20 | I131: 270 | J131: 6 | K131: 12 | L131: 49
C132: 15,4 | D132: Витаминизированный напиток " Витошка" | E132: 207 | H132: 10 | I132: 75 | J132: 0 | K132: 0 | L132: 19
C133: 1.1 | D133: Хлеб пшеничный | E133: 50 | F133: 73.7 | G133: 50 | H133: 5 | I133: 130 | J133: 4 | K133: 0.05 | L133: 27.5
D134: Итого: | H134: =SUM(H130:H133) -> 70 | I134: =SUM(I130:I133) -> 609 | J134: 25 | K134: =SUM(K130:K133) -> 19.05 | L134: =SUM(L130:L133) -> 103.8 | N134: 70
L135: 2024-11-29
A136: Прием пищи | B136: Раздел | C136: № рец | D136: Блюдо | E136: Выход | F136: Цена | G136: расход | H136: Цена | I136: ЭЦ | J136: Белки | K136: Жиры | L136: Углеводы
A137: Завтрак | C137: 365 | D137: Масло сливочное | E137: 10 | H137: 10 | I137: 66 | J137: 0 | K137: 7 | L137: 0
C138: 42 | D138: Каша рисовая молочная вязкая | E138: 205 | F138: 25 | G138: 318 | H138: 25 | I138: 262 | J138: 6 | K138: 8 | L138: 43
C139: 287 | D139: Кофейный напиток на молоке | E139: 200 | F139: 825 | G139: 1 | H139: 10 | I139: 101 | J139: 3.4 | K139: 15.1 | L139: 3.3
C140: 1.1 | D140: Хлеб пшеничный | E140: 50 | F140: 73.7 | G140: 50 | H140: 5 | I140: 130 | J140: 4 | K140: 0.05 | L140: 27.5
D141: Итого: | H141: =H137+H138+H139+H140 -> 50 | I141: =SUM(I137:I140) -> 559 | J141: =SUM(J137:J140) -> 13.4 | K141: =SUM(K137:K140) -> 30.15 | L141: =SUM(L137:L140) -> 73.8 | N141: 50
D145: Итого: 1140/60
